fUSD/lending_fUSD_20251031
["ID","MTS","AMOUNT","RATE_DAILY","PERIOD"]
[392761326,1761923451145,-151.0,0.0002,7]
[392761327,1761923451154,-163.635493,0.0002,7]
[392761328,1761923451163,-151.0,0.0002,7]
[392761329,1761923451177,-151.0,0.0002,7]
[392761330,1761923451186,-163.635493,0.0002,7]
[392761331,1761923451195,-151.0,0.0002,7]
[392761332,1761923451205,-151.0,0.0002,7]
[392761333,1761923451214,-163.635493,0.0002,7]
[392761334,1761923451223,-151.0,0.0002,7]
[392761335,1761923451232,-151.0,0.0002,7]
[392761336,1761923451242,-151.0,0.0002,7]
[392761337,1761923451251,-882.765861,0.0002,7]
[392761338,1761923451260,-151.0,0.0002,7]
[392761339,1761923451271,-151.0,0.0002,7]
[392761340,1761923451280,-176.052387,0.0002,7]
[392761341,1761923451290,-151.0,0.0002,7]
[392761342,1761923451300,-151.0,0.0002,7]
[392761343,1761923451309,-151.0,0.0002,7]
[392761344,1761923451318,-151.0,0.0002,7]
[392761345,1761923451327,-243.428371,0.0002,7]
[392761346,1761923451337,-151.0,0.0002,7]
[392761347,1761923451347,-151.0,0.0002,7]
[392761348,1761923451356,-151.0,0.0002,7]
[392761349,1761923451367,-235.518009,0.0002,7]
[392761350,1761923451376,-152.767364,0.0002,7]
[392761351,1761923451385,-160.716503,0.0002,7]
[392761352,1761923451394,-429.861942,0.0002,7]
[392761353,1761923451403,-151.0,0.0002,7]
[392761354,1761923451412,-429.861942,0.0002,7]
[392761355,1761923451422,-151.0,0.0002,7]
[392761356,1761923451431,-429.861942,0.0002,7]
[392761357,1761923451440,-151.0,0.0002,7]
[392761358,1761923451450,-429.861942,0.0002,7]
[392761359,1761923451459,-151.0,0.0002,7]
[392761360,1761923451468,-151.0,0.0002,7]
[392761361,1761923451478,-151.0,0.0002,7]
[392761362,1761923451487,-151.0,0.0002,7]
[392761363,1761923451497,-200.0,0.0002,2]
[392761364,1761923451506,-151.0,0.0002,7]
[392761365,1761923451517,-217.371365,0.0002,7]
[392761366,1761923451526,-233.343592,0.0002,7]
[392761367,1761923451536,-233.343592,0.0002,7]
[392761368,1761923451545,-151.0,0.0002,7]
[392761369,1761923451555,-222.242246,0.0002,7]
[392761370,1761923451565,-233.343592,0.0002,7]
[392761371,1761923451575,-233.343592,0.0002,7]
[392761372,1761923451584,-160.750412,0.0002,7]
[392761373,1761923451594,-151.0,0.0002,7]
[392761374,1761923451603,-151.0,0.0002,7]
[392761375,1761923451613,-151.0,0.0002,7]
[392761376,1761923451622,-151.0,0.0002,7]
[392761377,1761923451632,-151.0,0.0002,7]
[392761378,1761923451641,-273.527252,0.0002,7]
[392761379,1761923451651,-273.527252,0.0002,7]
[392761380,1761923451660,-273.527252,0.0002,7]
[392761381,1761923451669,-273.527252,0.0002,7]
[392761382,1761923451679,-442.690934,0.0002,7]
[392761383,1761923451689,-151.0,0.0002,7]
[392761384,1761923451699,-442.690934,0.0002,7]
[392761385,1761923451709,-442.690934,0.0002,7]
[392761386,1761923451718,-571.210322,0.0002,7]
[392761387,1761923451728,-151.0,0.0002,7]
[392761388,1761923451738,-571.210322,0.0002,7]
[392761389,1761923451748,-151.0,0.0002,7]
[392761390,1761923451758,-571.210322,0.0002,7]
[392761391,1761923451768,-442.690934,0.0002,7]
[392761392,1761923451778,-571.210322,0.0002,7]
[392761393,1761923451788,-1000.0,0.00020116,2]
[392761394,1761923451798,-150.99,0.00020145,2]
[392761395,1761923451807,-3729.48,0.00020145,2]
[392761396,1761923451817,-1152.0,0.00020164,2]
[392761397,1761923451826,-566.21193425,0.00020164,2]
[392761398,1761923451836,-533.07,0.00020187,2]
[392761399,1761923451845,-162.380719,0.00020274,2]
[392761400,1761923451855,-162.64117101,0.00020432,2]
[392761401,1761923451864,-1000.0,0.00020526,2]
[392761402,1761923451873,-21300.07,0.00020548,2]
[392761403,1761923451883,-151.0,0.00020548,7]
[392761404,1761923451892,-151.0,0.00020548,7]
[392761405,1761923451901,-151.0,0.00020548,7]
[392761406,1761923451911,-269.214437,0.00020548,7]
[392761407,1761923451920,-171.477867,0.00020548,7]
[392761408,1761923451929,-1163.0,0.00020563,2]
[392761409,1761923451939,-477.23814323,0.000206,7]
[392761410,1761923451948,-225.82599667,0.00020688,7]
[392761411,1761923451957,-1000.0,0.00020795,2]
[392761412,1761923451967,-268.02340902,0.00020822,2]
[392761413,1761923451979,-697.83,0.00020848,2]
[392761414,1761923451988,-6226.96095283,0.000209,30]
[392761415,1761923451998,-1594.0,0.000209,2]
[392761416,1761923452007,-1314.0,0.000209,2]
[392761417,1761923452019,-819.0,0.000209,2]
[392761418,1761923452028,-587.672,0.000209,2]
[392761419,1761923452038,-6630.0,0.00020901,2]
[392761420,1761923452048,-6468.0,0.00020901,2]
[392761421,1761923452058,-7292.79384357,0.00021,2]
[392761422,1761923452068,-1367.94530613,0.00021,2]
[392761423,1761923452077,-1181.15455055,0.00021,2]
[392761424,1761923452087,-194.9662443,0.00021,2]
[392761425,1761923452096,-160.0,0.00021,7]
[392761426,1761923452105,-500.0,0.00021,2]
[392761427,1761923452115,-150.0,0.00021,2]
[392761428,1761923452124,-150.0,0.00021,2]
[392761429,1761923452133,-150.0,0.00021,2]
[392761430,1761923452143,-3420.0,0.00021,2]
[392761431,1761923452152,-607.0,0.00021,2]
[392761432,1761923452162,-573.0,0.00021,2]
[392761433,1761923452171,-820.0,0.00021,2]
[392761434,1761923452181,-350.0,0.00021,2]
[392761435,1761923452191,-159.57,0.00021016,2]
[392761436,1761923452200,-10355.21,0.00021068,2]
[392761437,1761923452209,-15334.03231041,0.0002108,2]
[392761438,1761923452218,-417.0,0.000211,2]
[392761439,1761923452227,-477.23814323,0.000212,7]
[392761440,1761923452237,-396.25,0.00021202,2]
[392761441,1761923452247,-891.01670954,0.000215,2]
[392761442,1761923452256,-5000.0,0.00021918,2]
[392761443,1761923452266,-600.0,0.00021918,4]
[392761444,1761923452275,-600.0,0.00021918,4]
[392761445,1761923452284,-600.0,0.00021918,4]
[392761446,1761923452294,-600.0,0.00021918,4]
[392761447,1761923452303,-709.2067465,0.00021918,4]
[392761448,1761923452312,-600.0,0.00021918,4]
[392761449,1761923452323,-600.0,0.00021918,4]
[392761450,1761923452333,-600.0,0.00021918,4]
[392761451,1761923452342,-600.0,0.00021918,4]
[392761452,1761923452352,-600.0,0.00021918,4]
[392761453,1761923452361,-600.0,0.00021918,4]
[392761454,1761923452373,-600.0,0.00021918,4]
[392761455,1761923452382,-600.0,0.00021918,4]
[392761456,1761923452393,-162.81228336,0.00021918,2]
[392761457,1761923452402,-221.38088418,0.00021918,2]
[392761458,1761923452411,-160.97,0.00022,2]
[392761459,1761923452421,-12736.31,0.00022,7]
[392761460,1761923452430,-2370.43439838,0.00022,2]
[392761461,1761923452440,-244.07,0.00022,2]
[392761462,1761923452450,-434.0,0.00022091,2]
[392761463,1761923452459,-489.35022871,0.000221,2]
[392761464,1761923452469,-237.77968233,0.0002211,2]
[392761465,1761923452478,-151.85,0.000222,22]
[392761466,1761923452487,-1000.0,0.00022392,2]
[392761467,1761923452496,-151.0,0.00022497,2]
[392761468,1761923452506,-21917.65335482,0.000225,2]
[392761469,1761923452516,-150.66,0.00022603,2]
[392761470,1761923452525,-517.50775534,0.0002271,2]
[392761471,1761923452534,-475.47,0.00022758,2]
[392761472,1761923452543,-1393.58,0.00022758,2]
[392761473,1761923452552,-952.9,0.00022776,2]
[392761474,1761923452562,-952.9,0.00022776,2]
[392761475,1761923452571,-697.83,0.00022776,2]
[392761476,1761923452581,-697.83,0.00022776,2]
[392761477,1761923452590,-9061.8503737,0.000229,2]
[392761478,1761923452599,-500.0,0.00022953,2]
[392761479,1761923452609,-162.64117102,0.00022986,2]
[392761480,1761923452618,-1000.0,0.00023,14]
[392761481,1761923452627,-435.21446132,0.00023,2]
[392761482,1761923452636,-996.97984366,0.00023,2]
[392761483,1761923452645,-37297.90904371,0.00023,2]
[392761484,1761923452655,-400.0,0.00023,2]
[392761485,1761923452664,-2558.69918163,0.000231,2]
[392761486,1761923452674,-670.03764718,0.00023154,2]
[392761487,1761923452683,-40674.86990485,0.000232,2]
[392761488,1761923452692,-162.0,0.000232,30]
[392761489,1761923452701,-153.882351,0.000232,7]
[392761490,1761923452711,-151.0,0.000232,7]
[392761491,1761923452720,-151.0,0.000232,7]
[392761492,1761923452729,-151.0,0.000232,7]
[392761493,1761923452738,-151.0,0.000232,7]
[392761494,1761923452748,-151.0,0.000232,7]
[392761495,1761923452758,-151.000004,0.000232,7]
[392761496,1761923452768,-12736.31,0.000234,7]
[392761497,1761923452777,-2000.0,0.000234,2]
[392761498,1761923452787,-1157.43,0.00023836,2]
[392761499,1761923452797,-1594.0,0.000239,2]
[392761500,1761923452806,-1314.0,0.000239,2]
[392761501,1761923452815,-819.0,0.000239,2]
[392761502,1761923452825,-6630.0,0.00023901,2]
[392761503,1761923452834,-1948.622,0.00023901,2]
[392761504,1761923452844,-244.07,0.00023907,2]
[392761505,1761923452853,-500.0,0.00024,2]
[392761506,1761923452863,-150.0,0.00024,2]
[392761507,1761923452872,-150.0,0.00024,2]
[392761508,1761923452881,-3420.0,0.00024,2]
[392761509,1761923452891,-607.0,0.00024,2]
[392761510,1761923452900,-573.0,0.00024,2]
[392761511,1761923452909,-820.0,0.00024,2]
[392761512,1761923452918,-168.83,0.00024273,2]
[392761513,1761923452928,-176.7,0.00024273,2]
[392761514,1761923452937,-176.7,0.00024273,2]
[392761515,1761923452946,-353.21,0.00024273,2]
[392761516,1761923452955,-208.97,0.00024273,2]
[392761517,1761923452964,-152.0,0.00024485,3]
[392761518,1761923452979,-257.63270965,0.000245,2]
[392761519,1761923452988,-1000.0,0.00024658,2]
[392761520,1761923452998,-151.0,0.00024658,7]
[392761521,1761923453007,-151.0,0.00024658,7]
[392761522,1761923453018,-520.24,0.00024658,2]
[392761523,1761923453224,-151.0,0.00024658,7]
[392761524,1761923453234,-151.0,0.00024658,7]
[392761525,1761923453244,-1146.81319463,0.00024797,2]
[392761526,1761923453254,-151.0,0.000248,7]
[392761527,1761923453264,-151.0,0.000248,7]
[392761528,1761923453274,-151.0,0.000248,7]
[392761529,1761923453283,-151.0,0.000248,7]
[392761530,1761923453293,-151.0,0.000248,7]
[392761531,1761923453303,-151.0,0.000248,7]
[392761532,1761923453313,-181.29941,0.000248,7]
[392761533,1761923453326,-151.0,0.000248,7]
[392761534,1761923453343,-151.0,0.000248,7]
[392761535,1761923453358,-153.843732,0.000248,7]
[392761536,1761923453367,-151.0,0.000248,7]
[392761537,1761923453377,-151.0,0.000248,7]
[392761538,1761923453387,-151.0,0.000248,7]
[392761539,1761923453397,-160.000257,0.000248,7]
[392761540,1761923453406,-151.0,0.000248,7]
[392761541,1761923453416,-151.0,0.000248,7]
[392761542,1761923453425,-151.0,0.000248,7]
[392761543,1761923453435,-151.0,0.000248,7]
[392761544,1761923453444,-151.0,0.000248,7]
[392761545,1761923453453,-151.0,0.000248,7]
[392761546,1761923453462,-151.0,0.000248,7]
[392761547,1761923453472,-151.0,0.000248,7]
[392761548,1761923453482,-151.0,0.000248,7]
[392761549,1761923453491,-168.294398,0.000248,7]
[392761550,1761923453501,-546.122706,0.000248,7]
[392761551,1761923453510,-151.0,0.000248,7]
[392761552,1761923453521,-546.122706,0.000248,7]
[392761553,1761923453530,-546.122706,0.000248,7]
[392761554,1761923453540,-546.122706,0.000248,7]
[392761555,1761923453550,-151.0,0.000248,7]
[392761556,1761923453560,-151.0,0.000248,7]
[392761557,1761923453570,-156.498957,0.000248,7]
[392761558,1761923453580,-151.0,0.000248,7]
[392761559,1761923453590,-151.0,0.000248,7]
[392761560,1761923453600,-151.0,0.000248,7]
[392761561,1761923453610,-163.635493,0.000248,7]
[392761562,1761923453619,-151.0,0.000248,7]
[392761563,1761923453629,-151.0,0.000248,7]
[392761564,1761923453638,-163.635493,0.000248,7]
[392761565,1761923453648,-151.0,0.000248,7]
[392761566,1761923453658,-151.0,0.000248,7]
[392761567,1761923453668,-151.0,0.000248,7]
[392761568,1761923453677,-153.616944,0.000248,7]
[392761569,1761923453687,-163.635493,0.000248,7]
[392761570,1761923453697,-163.635493,0.000248,7]
[392761571,1761923453708,-243.208894,0.000248,7]
[392761572,1761923453718,-151.0,0.000248,7]
[392761573,1761923453728,-882.765861,0.000248,7]
[392761574,1761923453738,-151.0,0.000248,7]
[392761575,1761923453748,-605378.38447,0.000248,2]
[392761576,1761923453758,-151.0,0.000248,7]
[392761577,1761923453769,-151.0,0.000248,7]
[392761578,1761923453779,-151.0,0.000248,7]
[392761579,1761923453788,-151.0,0.000248,7]
[392761580,1761923453797,-151.0,0.000248,7]
[392761581,1761923453807,-151.0,0.000248,7]
[392761582,1761923453817,-151.0,0.000248,7]
[392761583,1761923453826,-151.0,0.000248,7]
[392761584,1761923453836,-429.861942,0.000248,7]
[392761585,1761923453846,-151.0,0.000248,7]
[392761586,1761923453855,-429.861942,0.000248,7]
[392761587,1761923453865,-151.0,0.000248,7]
[392761588,1761923453875,-151.0,0.000248,7]
[392761589,1761923453885,-429.861942,0.000248,7]
[392761590,1761923453895,-151.0,0.000248,7]
[392761591,1761923453904,-429.861942,0.000248,7]
[392761592,1761923453914,-151.0,0.000248,7]
[392761593,1761923453924,-151.0,0.000248,7]
[392761594,1761923453934,-151.0,0.000248,7]
[392761595,1761923453943,-151.0,0.000248,7]
[392761596,1761923453953,-251.08017,0.000248,7]
[392761597,1761923453963,-233.343592,0.000248,7]
[392761598,1761923453975,-233.343592,0.000248,7]
[392761599,1761923453985,-156.501213,0.000248,7]
[392761600,1761923453994,-233.343592,0.000248,7]
[392761601,1761923454004,-233.343592,0.000248,7]
[392761602,1761923454016,-233.146449,0.000248,7]
[392761603,1761923454025,-151.0,0.000248,7]
[392761604,1761923454035,-151.0,0.000248,7]
[392761605,1761923454044,-151.0,0.000248,7]
[392761606,1761923454057,-178.25175,0.000248,7]
[392761607,1761923454067,-273.527252,0.000248,7]
[392761608,1761923454076,-273.527252,0.000248,7]
[392761609,1761923454086,-273.527252,0.000248,7]
[392761610,1761923454095,-273.527252,0.000248,7]
[392761611,1761923454105,-442.690934,0.000248,7]
[392761612,1761923454114,-286.379388,0.000248,7]
[392761613,1761923454123,-442.690934,0.000248,7]
[392761614,1761923454133,-442.690934,0.000248,7]
[392761615,1761923454143,-571.210322,0.000248,7]
[392761616,1761923454152,-151.0,0.000248,7]
[392761617,1761923454162,-571.210322,0.000248,7]
[392761618,1761923454175,-571.210322,0.000248,7]
[392761619,1761923454184,-442.690934,0.000248,7]
[392761620,1761923454194,-571.210322,0.000248,7]
[392761621,1761923454203,-152.0,0.00024852,4]
[392761622,1761923454212,-150.0,0.00024873,2]
[392761623,1761923454221,-159.33962016,0.00024897,7]
[392761624,1761923454231,-12736.31,0.000249,7]
[392761625,1761923454240,-160.5,0.000249,7]
[392761626,1761923454250,-160.82,0.000249,7]
[392761627,1761923454259,-151.0,0.000249,7]
[392761628,1761923454269,-255.153027,0.000249,7]
[392761629,1761923454279,-151.0,0.000249,7]
[392761630,1761923454289,-151.0,0.000249,7]
[392761631,1761923454299,-151.0,0.000249,7]
[392761632,1761923454308,-185983.61002509,0.000249,2]
[392761633,1761923454332,-194703.09047309,0.000249,2]
[392761634,1761923454343,-38198.90586287,0.000249,2]
[392761635,1761923454355,-184763.25362595,0.000249,2]
[392761636,1761923454364,-600.91857847,0.00025,2]
[392761637,1761923454376,-204.8419686,0.00025,2]
[392761638,1761923454386,-1761.77233236,0.00025,2]
[392761639,1761923454395,-360.0,0.00025,2]
[392761640,1761923454405,-3777.60619259,0.00025,2]
[392761641,1761923454415,-3004.15226859,0.00025,2]
[392761642,1761923454424,-12034.29349299,0.00025,2]
[392761643,1761923454433,-1050.35701722,0.00025,2]
[392761644,1761923454443,-165.09338213,0.00025,2]
[392761645,1761923454452,-4787.22495169,0.00025,15]
[392761646,1761923454462,-2994.41682514,0.00025,2]
[392761647,1761923454472,-1295.51808342,0.00025,4]
[392761648,1761923454482,-4305.82096327,0.00025,7]
[392761649,1761923454491,-2000.0,0.00025,3]
[392761650,1761923454501,-161.57,0.00025,5]
[392761651,1761923454510,-152.649,0.00025,2]
[392761652,1761923454520,-1154.67,0.00025,2]
[392761653,1761923454530,-450.0,0.00025,2]
[392761654,1761923454539,-15000.0,0.0002501,2]
[392761655,1761923454548,-161.0,0.000251,2]
[392761656,1761923454558,-200.0,0.000251,2]
[392761657,1761923454567,-152.0,0.00025219,5]
[392761658,1761923454576,-250.0,0.00025421,2]
[392761659,1761923454586,-1154.67,0.000255,2]
[392761660,1761923454596,-152.0,0.00025586,6]
[392761661,1761923454605,-500.0,0.00025771,2]
[392761662,1761923454616,-244.07,0.00025814,7]
[392761663,1761923454626,-20068.27109143,0.00025879,2]
[392761664,1761923454635,-524.65,0.000259,30]
[392761665,1761923454644,-413.84,0.00025908,2]
[392761666,1761923454654,-1914.38,0.00025927,2]
[392761667,1761923454663,-1095.5,0.00025927,2]
[392761668,1761923454673,-415.19,0.00025927,2]
[392761669,1761923454682,-415.19,0.00025927,2]
[392761670,1761923454691,-152.0,0.00025953,7]
[392761671,1761923454700,-592.78582118,0.0002599,2]
[392761672,1761923454709,-11054.94026717,0.00026,2]
[392761673,1761923454719,-160.79942514,0.00026,2]
[392761674,1761923454729,-4433.65,0.00026,2]
[392761675,1761923454739,-213.61511244,0.00026,2]
[392761676,1761923454748,-2608.59716011,0.00026,100]
[392761677,1761923454758,-2818.70237791,0.00026,10]
[392761678,1761923454768,-4464.71333891,0.00026,2]
[392761679,1761923454778,-51909.09806684,0.00026,4]
[392761680,1761923454788,-477.23814323,0.00026,10]
[392761681,1761923454798,-152.0,0.0002632,8]
[392761682,1761923454808,-25229.52280434,0.000264,2]
[392761683,1761923455243,-467.5619357,0.000264,2]
[392761684,1761923455265,-1425.99836985,0.000264,2]
[392761685,1761923455274,-474.5,0.00026638,15]
[392761686,1761923455284,-533.07,0.00026676,2]
[392761687,1761923455293,-152.0,0.00026687,9]
[392761688,1761923455304,-12736.31,0.000267,7]
[392761689,1761923455314,-258.43059,0.000267,7]
[392761690,1761923455323,-151.0,0.000267,7]
[392761691,1761923455333,-151.0,0.000267,7]
[392761692,1761923455342,-151.0,0.000267,7]
[392761693,1761923455352,-158.299712,0.000267,7]
[392761694,1761923455361,-151.0,0.000267,7]
[392761695,1761923455371,-151.000005,0.000267,7]
[392761696,1761923455380,-151.0,0.000267,7]
[392761697,1761923455389,-151.0,0.000267,7]
[392761698,1761923455399,-151.0,0.000267,7]
[392761699,1761923455408,-151.0,0.000267,7]
[392761700,1761923455417,-151.0,0.000267,7]
[392761701,1761923455426,-151.0,0.000267,7]
[392761702,1761923455435,-151.0,0.000267,7]
[392761703,1761923455444,-546.122706,0.000267,7]
[392761704,1761923455453,-546.122706,0.000267,7]
[392761705,1761923455462,-151.0,0.000267,7]
[392761706,1761923455471,-546.122706,0.000267,7]
[392761707,1761923455480,-546.122706,0.000267,7]
[392761708,1761923455489,-224.990943,0.000267,7]
[392761709,1761923455498,-151.0,0.000267,7]
[392761710,1761923455507,-151.0,0.000267,7]
[392761711,1761923455516,-151.0,0.000267,7]
[392761712,1761923455525,-151.0,0.000267,7]
[392761713,1761923455534,-163.635493,0.000267,7]
[392761714,1761923455543,-151.0,0.000267,7]
[392761715,1761923455552,-151.0,0.000267,7]
[392761716,1761923455561,-151.0,0.000267,7]
[392761717,1761923455570,-163.635493,0.000267,7]
[392761718,1761923455579,-151.0,0.000267,7]
[392761719,1761923455589,-163.635493,0.000267,7]
[392761720,1761923455598,-163.635493,0.000267,7]
[392761721,1761923455607,-882.765861,0.000267,7]
[392761722,1761923455616,-882.765861,0.000267,7]
[392761723,1761923455626,-158.930544,0.000267,7]
[392761724,1761923455636,-151.0,0.000267,7]
[392761725,1761923455644,-151.0,0.000267,7]
[392761726,1761923455653,-151.0,0.000267,7]
[392761727,1761923455663,-151.0,0.000267,7]
[392761728,1761923455866,-151.0,0.000267,7]
[392761729,1761923455876,-151.0,0.000267,7]
[392761730,1761923455886,-151.0,0.000267,7]
[392761731,1761923455895,-151.0,0.000267,7]
[392761732,1761923455904,-429.861942,0.000267,7]
[392761733,1761923455913,-151.0,0.000267,7]
[392761734,1761923455923,-429.861942,0.000267,7]
[392761735,1761923455932,-151.0,0.000267,7]
[392761736,1761923455940,-151.0,0.000267,7]
[392761737,1761923455950,-429.861942,0.000267,7]
[392761738,1761923455959,-151.0,0.000267,7]
[392761739,1761923455978,-429.861942,0.000267,7]
[392761740,1761923455997,-151.0,0.000267,7]
[392761741,1761923456016,-151.0,0.000267,7]
[392761742,1761923456025,-151.0,0.000267,7]
[392761743,1761923456035,-151.0,0.000267,7]
[392761744,1761923456044,-233.343592,0.000267,7]
[392761745,1761923456053,-233.343592,0.000267,7]
[392761746,1761923456063,-233.343592,0.000267,7]
[392761747,1761923456074,-233.343592,0.000267,7]
[392761748,1761923456083,-151.0,0.000267,7]
[392761749,1761923456092,-151.0,0.000267,7]
[392761750,1761923456101,-151.0,0.000267,7]
[392761751,1761923456111,-273.527252,0.000267,7]
[392761752,1761923456120,-273.527252,0.000267,7]
[392761753,1761923456129,-273.527252,0.000267,7]
[392761754,1761923456139,-273.527252,0.000267,7]
[392761755,1761923456148,-442.690934,0.000267,7]
[392761756,1761923456157,-442.690934,0.000267,7]
[392761757,1761923456166,-571.210322,0.000267,7]
[392761758,1761923456175,-442.690934,0.000267,7]
[392761759,1761923456184,-156.617996,0.000267,7]
[392761760,1761923456194,-571.210322,0.000267,7]
[392761761,1761923456203,-571.210322,0.000267,7]
[392761762,1761923456212,-442.690934,0.000267,7]
[392761763,1761923456221,-571.210322,0.000267,7]
[392761764,1761923456231,-304.49,0.00026736,2]
[392761765,1761923456240,-151.588275,0.00026736,7]
[392761766,1761923456249,-151.0,0.00026736,7]
[392761767,1761923456258,-158.26855468,0.0002674,2]
[392761768,1761923456269,-153.508846,0.00026749,7]
[392761769,1761923456279,-156.237352,0.00026749,7]
[392761770,1761923456288,-151.0,0.00026749,7]
[392761771,1761923456297,-151.000002,0.00026749,7]
[392761772,1761923456307,-1594.0,0.000269,2]
[392761773,1761923456318,-757.305,0.000269,2]
[392761774,1761923456327,-819.0,0.000269,2]
[392761775,1761923456336,-158.26855468,0.00026986,2]
[392761776,1761923456345,-1020.44023159,0.00027,2]
[392761777,1761923456355,-250.0,0.00027,2]
[392761778,1761923456365,-1944.06111184,0.00027,14]
[392761779,1761923456374,-530.0,0.00027,2]
[392761780,1761923456383,-15992.39373627,0.00027,5]
[392761781,1761923456393,-3419.0,0.00027,2]
[392761782,1761923456404,-543.649,0.00027,2]
[392761783,1761923456413,-820.0,0.00027,2]
[392761784,1761923456423,-500.0,0.00027,2]
[392761785,1761923456432,-152.0,0.00027054,10]
[392761786,1761923456441,-2000.0,0.000271,2]
[392761787,1761923456449,-158.26855468,0.00027205,2]
[392761788,1761923456459,-1425.0,0.00027216,2]
[392761789,1761923456468,-150.0,0.00027369,2]
[392761790,1761923456477,-191.0016592,0.00027397,2]
[392761791,1761923456486,-171.0,0.00027397,120]
[392761792,1761923456495,-256.44,0.00027397,2]
[392761793,1761923456504,-300.0,0.00027397,2]
[392761794,1761923456513,-520.24,0.00027397,2]
[392761795,1761923456522,-156.74210082,0.00027397,5]
[392761796,1761923456531,-1302.59,0.000274,2]
[392761797,1761923456540,-156.6393569,0.000274,4]
[392761798,1761923456549,-156.6393569,0.000274,4]
[392761799,1761923456558,-156.6393569,0.000274,4]
[392761800,1761923456567,-156.6393569,0.000274,4]
[392761801,1761923456576,-156.6393569,0.000274,4]
[392761802,1761923456589,-156.6393569,0.000274,4]
[392761803,1761923456604,-156.6393569,0.000274,4]
[392761804,1761923456616,-156.6393569,0.000274,4]
[392761805,1761923456626,-156.6393569,0.000274,4]
[392761806,1761923456637,-156.6393569,0.000274,4]
[392761807,1761923456646,-156.6393569,0.000274,4]
[392761808,1761923456656,-156.6393569,0.000274,4]
[392761809,1761923456665,-156.6393569,0.000274,4]
[392761810,1761923456675,-156.6393569,0.000274,4]
[392761811,1761923456685,-156.6393569,0.000274,4]
[392761812,1761923456694,-156.6393569,0.000274,4]
[392761813,1761923456704,-156.6393569,0.000274,4]
[392761814,1761923456713,-156.63,0.000274,4]
[392761815,1761923456723,-328.94264948,0.000274,4]
[392761816,1761923456733,-328.94264948,0.000274,4]
[392761817,1761923456742,-328.94264948,0.000274,4]
[392761818,1761923456751,-328.94264948,0.000274,4]
[392761819,1761923456761,-328.94264948,0.000274,4]
[392761820,1761923456770,-328.94264948,0.000274,4]
[392761821,1761923456780,-328.94264948,0.000274,4]
[392761822,1761923456790,-328.94264948,0.000274,4]
[392761823,1761923456800,-328.94264948,0.000274,4]
[392761824,1761923456810,-328.94264948,0.000274,4]
[392761825,1761923456819,-328.94264948,0.000274,4]